fUSD/lending_fUSD_20260404
["ID","MTS","AMOUNT","RATE_DAILY","PERIOD"]
[419708542,1775328643996,-150.0,0.000155,2]
[419708543,1775328644007,-2000.0,0.00015501,2]
[419708544,1775328644016,-150.0,0.00015508,2]
[419708545,1775328644026,-2000.0,0.00015514,2]
[419708546,1775328644035,-150.0,0.0001552,2]
[419708547,1775328644044,-500.0,0.00015529,2]
[419708548,1775328644054,-151.0,0.00015529,2]
[419708549,1775328644064,-150.0,0.00015529,2]
[419708550,1775328644073,-150.0,0.0001555,2]
[419708551,1775328644083,-150.0,0.00015552,2]
[419708552,1775328644092,-150.0,0.00015552,2]
[419708553,1775328644101,-150.0,0.00015569,2]
[419708554,1775328644110,-150.0,0.00015579,2]
[419708555,1775328644119,-18846.22841185,0.00015581,2]
[419708556,1775328644129,-500.0,0.00015584,2]
[419708557,1775328644139,-151.0,0.00015584,2]
[419708558,1775328644148,-150.0,0.000156,2]
[419708559,1775328644158,-2000.0,0.000156,2]
[419708560,1775328644168,-2000.0,0.00015601,2]
[419708561,1775328644178,-150.0,0.00015616,2]
[419708562,1775328644187,-150.0,0.00015616,2]
[419708563,1775328644197,-150.0,0.00015624,2]
[419708564,1775328644208,-150.0,0.00015631,2]
[419708565,1775328644217,-500.0,0.00015639,2]
[419708566,1775328644227,-151.0,0.00015639,2]
[419708567,1775328644237,-150.0,0.00015644,2]
[419708568,1775328644247,-150.0,0.0001565,2]
[419708569,1775328644257,-150.0,0.00015663,2]
[419708570,1775328644267,-394.62197381,0.00015664,2]
[419708571,1775328644276,-81.17481413,0.00015679,2]
[419708572,1775328644286,-1061.05760977,0.00015679,2]
[419708573,1775328644295,-1047.0463847,0.00015679,2]
[419708574,1775328644305,-1119.79174371,0.00015679,2]
[419708575,1775328644315,-1066.13407709,0.00015679,2]
[419708576,1775328644324,-3064.47914411,0.0001568,2]
[419708577,1775328644334,-1361.0,0.0001568,2]
[419708578,1775328644343,-150.0,0.0001568,2]
[419708579,1775328644355,-150.0,0.0001568,2]
[419708580,1775328644365,-150.0,0.0001568,2]
[419708581,1775328644375,-150.0,0.0001568,2]
[419708582,1775328644385,-1090.86289968,0.00015681,2]
[419708583,1775328644395,-1077.38532495,0.00015681,2]
[419708584,1775328644405,-1100.53140183,0.00015681,2]
[419708585,1775328644415,-500.0,0.00015684,4]
[419708586,1775328644424,-150.0,0.00015692,2]
[419708587,1775328644434,-500.0,0.00015694,2]
[419708588,1775328644443,-151.0,0.00015694,2]
[419708589,1775328644453,-150.0,0.000157,2]
[419708590,1775328644463,-2000.0,0.00015701,2]
[419708591,1775328644473,-1798.06,0.00015701,2]
[419708592,1775328644483,-150.0,0.00015718,2]
[419708593,1775328644493,-1000.0,0.00015734,2]
[419708594,1775328644502,-150.0,0.00015744,2]
[419708595,1775328644512,-150.0,0.00015744,2]
[419708596,1775328644524,-1481.23780761,0.00015747,2]
[419708597,1775328644534,-200.0,0.00015747,2]
[419708598,1775328644543,-771.01748645,0.00015747,2]
[419708599,1775328644554,-181.08010149,0.00015747,2]
[419708600,1775328644564,-207.78425205,0.00015747,2]
[419708601,1775328644574,-150.0,0.00015747,2]
[419708602,1775328644585,-500.0,0.00015749,2]
[419708603,1775328644595,-151.0,0.00015749,2]
[419708604,1775328644604,-150.0,0.0001575,2]
[419708605,1775328644614,-150.0,0.00015754,2]
[419708606,1775328644623,-5888.0,0.00015758,2]
[419708607,1775328644632,-3494.0,0.00015771,2]
[419708608,1775328644642,-751.40328168,0.00015783,2]
[419708609,1775328644652,-1176.0,0.00015785,2]
[419708610,1775328644661,-564.44658595,0.00015788,2]
[419708611,1775328644671,-150.0,0.00015795,2]
[419708612,1775328644680,-2351.0,0.00015795,2]
[419708613,1775328644690,-176.7,0.00015799,2]
[419708614,1775328644699,-150.0,0.000158,2]
[419708615,1775328644709,-1000.0,0.00015801,2]
[419708616,1775328644718,-2000.0,0.00015801,2]
[419708617,1775328644729,-622.0,0.00015803,2]
[419708618,1775328644740,-1046.0,0.00015803,2]
[419708619,1775328644750,-1347.0,0.00015803,2]
[419708620,1775328644760,-3521.0,0.00015803,2]
[419708621,1775328644769,-1277.641,0.00015803,2]
[419708622,1775328644779,-150.0,0.00015803,2]
[419708623,1775328644790,-150.0,0.00015803,2]
[419708624,1775328644800,-250.0,0.00015803,2]
[419708625,1775328644810,-2470.0,0.00015803,2]
[419708626,1775328644819,-150.0,0.00015803,2]
[419708627,1775328644829,-6019.0,0.00015803,2]
[419708628,1775328644839,-150.0,0.00015808,2]
[419708629,1775328644851,-150.0,0.00015808,2]
[419708630,1775328644861,-150.0,0.00015812,2]
[419708631,1775328644871,-150.0,0.00015815,2]
[419708632,1775328644881,-150.0,0.00015822,2]
[419708633,1775328644891,-1000.0,0.00015823,2]
[419708634,1775328644902,-150.0,0.00015832,2]
[419708635,1775328644912,-150.0,0.0001584,2]
[419708636,1775328644922,-2000.0,0.0001584,2]
[419708637,1775328644932,-2000.0,0.0001584,2]
[419708638,1775328644941,-2000.0,0.0001584,2]
[419708639,1775328644951,-176.7,0.00015845,2]
[419708640,1775328644960,-150.0,0.0001585,2]
[419708641,1775328644969,-1176.0,0.00015858,2]
[419708642,1775328644979,-500.0,0.00015871,2]
[419708643,1775328644988,-500.0,0.00015872,2]
[419708644,1775328644998,-200.0,0.00015872,2]
[419708645,1775328645008,-150.0,0.00015872,2]
[419708646,1775328645017,-150.0,0.00015872,2]
[419708647,1775328645026,-150.0,0.00015877,2]
[419708648,1775328645036,-1000.0,0.00015881,2]
[419708649,1775328645045,-500.0,0.00015883,2]
[419708650,1775328645055,-3494.0,0.00015883,2]
[419708651,1775328645065,-2500.0,0.0001589,2]
[419708652,1775328645074,-2500.0,0.0001589,2]
[419708653,1775328645083,-18846.22841185,0.00015894,2]
[419708654,1775328645091,-1610.0,0.000159,5]
[419708655,1775328645101,-604.90515633,0.000159,2]
[419708656,1775328645110,-165.06846975,0.000159,2]
[419708657,1775328645119,-150.0,0.000159,2]
[419708658,1775328645129,-2456.33359064,0.000159,2]
[419708659,1775328645138,-1602.77615534,0.000159,2]
[419708660,1775328645148,-2000.0,0.00015901,2]
[419708661,1775328645157,-150.0,0.00015906,2]
[419708662,1775328645167,-807.84316326,0.0001591,2]
[419708663,1775328645178,-1003.62269392,0.00015912,2]
[419708664,1775328645187,-276.0,0.00015915,2]
[419708665,1775328645198,-150.0,0.00015916,2]
[419708666,1775328645207,-205.5,0.00015921,2]
[419708667,1775328645216,-150.0,0.00015936,2]
[419708668,1775328645226,-150.0,0.00015936,2]
[419708669,1775328645235,-150.0,0.00015938,2]
[419708670,1775328645245,-150.0,0.00015938,2]
[419708671,1775328645255,-150.0,0.00015942,2]
[419708672,1775328645267,-150.0,0.00015946,2]
[419708673,1775328645277,-205.5,0.00015947,2]
[419708674,1775328645287,-150.0,0.0001595,2]
[419708675,1775328645297,-245.407609,0.00015952,2]
[419708676,1775328645307,-1000.0,0.00015953,2]
[419708677,1775328645320,-205.5,0.00015974,2]
[419708678,1775328645330,-1000.0,0.00015977,2]
[419708679,1775328645341,-3494.0,0.00015986,2]
[419708680,1775328645351,-500.0,0.00015993,2]
[419708681,1775328645361,-500.0,0.00015993,2]
[419708682,1775328645371,-500.0,0.00015993,2]
[419708683,1775328645381,-500.0,0.00015993,2]
[419708684,1775328645390,-500.0,0.00015993,2]
[419708685,1775328645400,-500.0,0.00015993,2]
[419708686,1775328645409,-500.0,0.00015993,2]
[419708687,1775328645419,-500.0,0.00015993,2]
[419708688,1775328645429,-500.0,0.00015993,2]
[419708689,1775328645441,-500.0,0.00015993,2]
[419708690,1775328645450,-500.0,0.00015993,2]
[419708691,1775328645460,-500.0,0.00015993,2]
[419708692,1775328645470,-500.0,0.00015993,2]
[419708693,1775328645480,-500.0,0.00015993,2]
[419708694,1775328645489,-500.0,0.00015993,2]
[419708695,1775328645498,-500.0,0.00015993,2]
[419708696,1775328645508,-500.0,0.00015993,2]
[419708697,1775328645517,-500.0,0.00015993,2]
[419708698,1775328645527,-500.0,0.00015993,2]
[419708699,1775328645536,-500.0,0.00015993,2]
[419708700,1775328645546,-500.0,0.00015993,2]
[419708701,1775328645557,-500.0,0.00015993,2]
[419708702,1775328645567,-500.0,0.00015993,2]
[419708703,1775328645576,-500.0,0.00015993,2]
[419708704,1775328645587,-500.0,0.00015993,2]
[419708705,1775328645681,-500.0,0.00015993,2]
[419708706,1775328645690,-500.0,0.00015993,2]
[419708707,1775328645699,-500.0,0.00015993,2]
[419708708,1775328645708,-242.62789815,0.00015993,2]
[419708709,1775328645717,-1406.4854137,0.00015994,2]
[419708710,1775328645726,-230330.68005269,0.00015994,2]
[419708711,1775328646229,-151.58,0.00013523,2]
[419708712,1775328646242,-7613.80283452,0.0001464,2]
[419708713,1775328646251,-209.23,0.00015709,2]
[419708714,1775328646260,-1217.0,0.00015803,2]
[419708715,1775328646271,-199222.99687861,0.00015994,2]
[419708716,1775328646281,-12250.0665259,0.00015994,2]
[419708717,1775328646292,-49739.6164886,0.00015994,2]
[419708718,1775328646302,-117232.599007,0.00015994,2]
[419708719,1775328646311,-151.0,0.00015994,2]
[419708720,1775328646320,-151.0,0.00015994,2]
[419708721,1775328646329,-151.0,0.00015994,2]
[419708722,1775328646338,-151.0,0.00015994,2]
[419708723,1775328646348,-1997.9945575,0.00015994,2]
[419708724,1775328646357,-2351.898826,0.00015994,2]
[419708725,1775328646366,-1390.565184,0.00015994,2]
[419708726,1775328646376,-2351.898826,0.00015994,2]
[419708727,1775328646386,-1390.565184,0.00015994,2]
[419708728,1775328646395,-2351.898826,0.00015994,2]
[419708729,1775328646404,-1390.565184,0.00015994,2]
[419708730,1775328646413,-2351.898826,0.00015994,2]
[419708731,1775328646422,-1390.565184,0.00015994,2]
[419708732,1775328646432,-151.0,0.00015994,2]
[419708733,1775328646441,-151.0,0.00015994,2]
[419708734,1775328646450,-151.0,0.00015994,2]
[419708735,1775328646459,-366.94985,0.00015994,2]
[419708736,1775328646468,-156.318082,0.00015994,2]
[419708737,1775328646477,-366.94985,0.00015994,2]
[419708738,1775328646486,-366.94985,0.00015994,2]
[419708739,1775328646495,-366.94985,0.00015994,2]
[419708740,1775328646504,-1010.172856,0.00015994,2]
[419708741,1775328646513,-250.008021,0.00015994,2]
[419708742,1775328646526,-1010.172856,0.00015994,2]
[419708743,1775328646535,-250.008021,0.00015994,2]
[419708744,1775328646544,-1010.172856,0.00015994,2]
[419708745,1775328646553,-250.008021,0.00015994,2]
[419708746,1775328646562,-1010.172856,0.00015994,2]
[419708747,1775328646571,-250.008021,0.00015994,2]
[419708748,1775328646579,-1904.207058,0.00015994,2]
[419708749,1775328646588,-1904.207058,0.00015994,2]
[419708750,1775328646598,-1189.898368,0.00015994,2]
[419708751,1775328646606,-1904.207058,0.00015994,2]
[419708752,1775328646616,-1189.898368,0.00015994,2]
[419708753,1775328646624,-1904.207058,0.00015994,2]
[419708754,1775328646633,-1189.898368,0.00015994,2]
[419708755,1775328646642,-1189.898368,0.00015994,2]
[419708756,1775328646651,-151.0,0.00015994,2]
[419708757,1775328646660,-151.0,0.00015994,2]
[419708758,1775328646669,-151.0,0.00015994,2]
[419708759,1775328646678,-151.0,0.00015994,2]
[419708760,1775328646688,-151.0,0.00015994,2]
[419708761,1775328646697,-151.0,0.00015994,2]
[419708762,1775328646706,-151.0,0.00015994,2]
[419708763,1775328646714,-151.0,0.00015994,2]
[419708764,1775328646724,-3494.0,0.00015996,2]
[419708765,1775328646733,-73491.46679259,0.00015999,2]
[419708766,1775328646741,-200.0,0.00015999,2]
[419708767,1775328646750,-150.0,0.00015999,2]
[419708768,1775328646759,-500.0,0.00015999,2]
[419708769,1775328646768,-1000.0,0.00015999,2]
[419708770,1775328646776,-1002.07688362,0.00015999,2]
[419708771,1775328646785,-288.22217165,0.00015999,2]
[419708772,1775328646795,-531.88329092,0.00015999,2]
[419708773,1775328646804,-500.0,0.00015999,2]
[419708774,1775328646813,-442.23569611,0.00015999,2]
[419708775,1775328646822,-150.0,0.00016,2]
[419708776,1775328646832,-150.0,0.00016,2]
[419708777,1775328646841,-150.0,0.00016,2]
[419708778,1775328646850,-150.0,0.00016,2]
[419708779,1775328646859,-150.0,0.00016,2]
[419708780,1775328646868,-150.0,0.00016,2]
[419708781,1775328646877,-150.0,0.00016,2]
[419708782,1775328646886,-150.0,0.00016,2]
[419708783,1775328646895,-150.0,0.00016,2]
[419708784,1775328646904,-2009896.67644933,0.00016,2]
[419708785,1775328646913,-1215517.78891382,0.00016,2]
[419708786,1775328646937,-29948.97847713,0.00016,2]
[419708787,1775328646950,-7022.56090723,0.00016,2]
[419708788,1775328647054,-1884674.25686612,0.00016,2]
[419708789,1775328647085,-306.069,0.00016,2]
[419708790,1775328647097,-1316.30482803,0.00016,2]
[419708800,1775328649020,-1165.57730191,0.00014954,2]
[419708801,1775328649038,-2112.0,0.00014954,2]
[419708802,1775328649344,-4336.22553261,0.00014954,2]
[419708803,1775328649353,-41913.13102039,0.00016,2]
[419708804,1775328649596,-541.39498481,0.00016,2]
[419708805,1775328649612,-567.1714759,0.00016,2]
[419708806,1775328649664,-2305.59517589,0.00016,2]
[419708807,1775328649675,-984.49388968,0.00016,2]
[419708808,1775328649686,-793.1136,0.00016,2]
[419708809,1775328649697,-130943.19355146,0.00016,2]
[419708810,1775328919395,10000.0,0.0001265,10]
[419708811,1775328936351,10000.0,0.0001265,10]
[419708812,1775328944476,10000.0,0.0001265,10]
[419708813,1775328952920,10000.0,0.0001265,10]
[419708814,1775328997243,2043.92,0.0001265,10]
[419708818,1775329302960,-35258.0,0.00012491,2]
[419708820,1775329360549,-152.59,0.00012487,2]
[419708821,1775329360580,-300.0,0.0001249,2]
[419708822,1775329360610,-17963.8,0.00012491,2]
[419708823,1775329360640,-219.16,0.00012574,2]
[419708824,1775329360672,-1600.0,0.00012677,2]
[419708825,1775329360702,-211.30186859,0.00012792,2]
[419708826,1775329360732,-300.0,0.00012871,2]
[419708827,1775329360762,-300.0,0.00012871,2]
[419708828,1775329360792,-1200.0,0.00012871,2]
[419708829,1775329360821,-300.0,0.00012872,2]
[419708830,1775329360852,-2500.0,0.00012873,2]
[419708831,1775329360881,-17330.94823999,0.00012873,2]
[419708832,1775329360911,-165.06846975,0.00012873,2]
[419708833,1775329360940,-217.47992615,0.00012955,2]
[419708834,1775329360970,-150.0,0.00012971,2]
[419708835,1775329361000,-500.0,0.00012972,2]
[419708836,1775329361033,-531.88329092,0.00012972,2]
[419708837,1775329361068,-500.0,0.00012972,2]
[419708838,1775329361102,-500.0,0.00012972,2]
[419708839,1775329361138,-500.0,0.00012972,2]
[419708840,1775329361171,-469.63535919,0.00012972,2]
[419708841,1775329361207,-500.0,0.00012972,2]
[419708842,1775329361243,-500.0,0.00012972,2]
[419708843,1775329361278,-500.0,0.00012972,2]
[419708844,1775329361318,-500.0,0.00012972,2]
[419708845,1775329361350,-169.36822692,0.00012972,2]
[419708846,1775329361373,-500.0,0.00012972,2]
[419708847,1775329361396,-425.3077455,0.00012972,2]
[419708848,1775329361418,-500.0,0.00012972,2]
[419708849,1775329361441,-535.53427282,0.00012972,2]
[419708850,1775329361464,-500.0,0.00012973,2]
[419708851,1775329361488,-500.0,0.00012973,2]
[419708852,1775329361511,-500.0,0.00012973,2]
[419708853,1775329361534,-500.0,0.00012973,2]
[419708854,1775329362067,-500.0,0.00012973,2]
[419708855,1775329362096,-500.0,0.00012973,2]
[419708856,1775329362119,-500.0,0.00012973,2]
[419708857,1775329362145,-378442.92260017,0.00012973,2]
[419708861,1775329831808,-15967.63609425,0.000107,2]
[419708862,1775329831817,-352.5,0.00012627,2]
[419708863,1775329831827,-1200.0,0.00012871,2]
[419708864,1775329831836,-250.0,0.00012871,2]
[419708865,1775329831846,-601.90435204,0.00012871,2]
[419708866,1775329831856,-261.56558144,0.00012871,2]
[419708867,1775329831865,-500.0,0.00012872,2]
[419708868,1775329831875,-500.0,0.00012872,2]
[419708869,1775329831884,-188.86422298,0.00012872,2]
[419708870,1775329831894,-150.0,0.00012872,2]
[419708871,1775329831905,-300.0,0.00012872,2]
[419708872,1775329831914,-48547.61111356,0.00012873,2]
[419708873,1775329831927,-33106.08230213,0.00012873,2]
[419708874,1775329831941,-4434.76220405,0.00012873,2]
[419708875,1775329831952,-447.6126523,0.00012873,2]
[419708876,1775329831988,-300.0,0.00012873,2]
[419708877,1775329832000,-624.35787928,0.00012873,2]
[419708878,1775329832014,-6039.0,0.00012873,2]
[419708879,1775329832025,-397.67505484,0.00012873,2]
[419708880,1775329832098,-1782.3873477,0.00012873,2]
[419708881,1775329832109,-1309.45761818,0.00012873,2]
[419708882,1775329832120,-1912.81522465,0.00012873,2]
[419708883,1775329832131,-11168.81144696,0.00012873,2]
[419708886,1775329837524,-2354239.01185635,0.00012873,2]
[419708887,1775329837534,-1660.9685,0.00012873,2]
[419708888,1775329837543,-302013.3148,0.00012873,2]
[419708889,1775329837552,-2500.0,0.00012873,2]
[419708890,1775329837561,-15810.41681312,0.00012873,2]
[419708891,1775329837570,-2792.71210596,0.00012873,2]
[419708892,1775329837579,-9510.75832834,0.00012873,2]
[419708893,1775329837588,-270.7801228,0.00012873,2]
[419708894,1775329837598,-151.0,0.00012965,2]
[419708895,1775329837607,-151.0,0.00012965,2]
[419708896,1775329837615,-151.0,0.00012965,2]
[419708897,1775329837624,-151.0,0.00012965,2]
[419708898,1775329837634,-151.0,0.00012965,2]
[419708899,1775329837643,-151.0,0.00012965,2]
[419708900,1775329837652,-151.0,0.00012965,2]
[419708901,1775329837661,-151.0,0.00012965,2]
[419708902,1775329837670,-151.0,0.00012965,2]
[419708903,1775329837679,-151.0,0.00012965,2]
[419708904,1775329837688,-151.0,0.00012965,2]
[419708905,1775329837698,-1974.94062421,0.00012972,2]
[419708906,1775329837707,-351.42,0.00012973,2]
[419708907,1775329837716,-1266.82,0.00012973,2]
[419708908,1775329837725,-999.99,0.00012973,2]
[419708909,1775329837734,-1555.19,0.00012973,2]
[419708910,1775329837743,-4999.99,0.00012973,2]
[419708911,1775329837754,-9999.99,0.00012973,2]
[419708912,1775329837764,-9999.99,0.00012973,2]
[419708913,1775329837775,-299.99,0.00012973,2]
[419708914,1775329837784,-500.0,0.00012973,2]
[419708915,1775329837794,-500.0,0.00012973,2]
[419708916,1775329837803,-500.0,0.00012973,2]
[419708917,1775329837812,-500.0,0.00012973,2]
[419708918,1775329837823,-500.0,0.00012973,2]
[419708919,1775329837833,-500.0,0.00012973,2]
[419708920,1775329837844,-500.0,0.00012973,2]
[419708921,1775329837856,-500.0,0.00012973,2]
[419708922,1775329837867,-150.99,0.00012973,2]
[419708923,1775329837876,-9999.99,0.00012973,2]
[419708924,1775329837886,-150.99,0.00012973,2]
[419708925,1775329837897,-3292.32,0.00012973,2]
[419708926,1775329837906,-12394.51,0.00012973,2]
[419708927,1775329837918,-181.0,0.00012973,3]
[419708928,1775329837930,-2623.01791989,0.00012999,2]
[419708929,1775329837940,-250.0,0.00013,2]
[419708930,1775329837950,-2175.35,0.00013,2]
[419708932,1775329837959,-5389.8813808,0.0001305,2]
[419708934,1775329837968,-1000.0,0.00013055,2]
[419708936,1775329837978,-5533.0,0.000131,5]
[419708938,1775329837987,-15810.41681312,0.00013209,2]
[419708939,1775329837997,-9510.75832828,0.00013209,2]
[419708940,1775329838007,-150.0,0.00013239,2]
[419708942,1775329838016,-219.16,0.00013272,2]
[419708944,1775329838025,-2792.71210592,0.00013305,2]
[419708946,1775329838034,-1406.48,0.000134,2]
[419708948,1775329838043,-386.01505148,0.00013521,2]
[419708950,1775329838053,-1000.0,0.00013521,2]
[419708952,1775329838062,-1000.0,0.00013521,2]
[419708954,1775329838071,-1000.0,0.00013521,2]
[419708956,1775329838081,-1000.0,0.00013521,2]
[419708958,1775329838090,-1000.0,0.00013521,2]
[419708960,1775329838100,-1000.0,0.00013521,2]
[419708962,1775329838109,-1000.0,0.00013521,2]
[419708964,1775329838119,-1000.0,0.00013521,2]
[419708966,1775329838128,-15810.41681312,0.00013546,2]
[419708968,1775329838138,-9510.75832828,0.00013546,2]
[419708970,1775329838147,-2597.34483853,0.00013591,2]
[419708972,1775329838156,-500.0,0.00013698,2]
[419708974,1775329838165,-500.0,0.00013698,2]
[419708976,1775329838174,-268.57302384,0.00013698,2]
[419708978,1775329838184,-500.0,0.00013698,2]
[419708980,1775329838194,-500.0,0.00013698,2]
[419708982,1775329838204,-500.0,0.00013698,2]
[419708984,1775329838213,-500.0,0.00013698,2]
[419708986,1775329838222,-500.0,0.00013698,2]
[419708988,1775329838231,-500.0,0.00013698,2]
[419708990,1775329838240,-500.0,0.00013698,2]
[419708992,1775329838249,-500.0,0.00013698,2]
[419708994,1775329838259,-500.0,0.00013698,2]
[419708996,1775329838268,-500.0,0.00013698,2]
[419708998,1775329838277,-500.0,0.00013698,2]
[419709000,1775329838286,-500.0,0.00013698,2]
[419709002,1775329838295,-500.0,0.00013698,2]
[419709004,1775329838305,-500.0,0.00013698,2]
[419709006,1775329838314,-163.1276187,0.00013698,2]
[419709008,1775329838323,-500.0,0.00013698,2]
[419709010,1775329838333,-500.0,0.00013698,2]
[419709012,1775329838342,-500.0,0.00013698,2]
[419709014,1775329838352,-561.59815036,0.00013698,2]
[419709016,1775329838362,-500.0,0.00013698,2]
[419709018,1775329838371,-500.0,0.00013698,2]
[419709020,1775329838381,-500.0,0.00013698,2]
[419709022,1775329838391,-500.0,0.00013698,2]
[419709024,1775329838399,-500.0,0.00013698,2]
[419709026,1775329838410,-500.0,0.00013698,2]
[419709028,1775329838419,-500.0,0.00013698,2]
[419709030,1775329838428,-500.0,0.00013698,2]
[419709032,1775329838437,-500.0,0.00013698,2]
[419709034,1775329838447,-500.0,0.00013698,2]
[419709036,1775329838457,-500.0,0.00013698,2]
[419709037,1775329838466,-500.0,0.00013698,2]
[419709039,1775329838475,-500.0,0.00013698,2]
[419709041,1775329838484,-500.0,0.00013698,2]
[419709043,1775329838494,-500.0,0.00013698,2]
[419709045,1775329838503,-500.0,0.00013698,2]
[419709047,1775329838512,-500.0,0.00013698,2]
[419709049,1775329838521,-500.0,0.00013698,2]
[419709050,1775329838530,-500.0,0.00013698,2]
[419709051,1775329838539,-500.0,0.00013698,2]
[419709052,1775329838548,-500.0,0.00013698,2]
[419709053,1775329838558,-500.0,0.00013698,2]
[419709054,1775329838567,-500.0,0.00013698,2]
[419709055,1775329838576,-500.0,0.00013698,2]
[419709056,1775329838586,-500.0,0.00013698,2]
[419709057,1775329838596,-500.0,0.00013698,2]
[419709058,1775329838605,-500.0,0.00013698,2]
[419709059,1775329838614,-500.0,0.00013698,2]
[419709060,1775329838623,-500.0,0.00013698,2]
[419709061,1775329838632,-500.0,0.00013698,2]
[419709062,1775329838641,-500.0,0.00013698,2]
[419709063,1775329838651,-462.33955414,0.00013698,2]
[419709064,1775329838660,-500.0,0.00013698,2]
[419709065,1775329838669,-500.0,0.00013698,2]
[419709066,1775329838678,-412.378583,0.00013698,2]
[419709067,1775329838687,-500.0,0.00013698,2]
[419709068,1775329838696,-500.0,0.00013698,2]
[419709069,1775329838705,-500.0,0.00013698,2]
[419709070,1775329838714,-500.0,0.00013698,2]
[419709071,1775329838723,-500.0,0.00013698,2]
[419709072,1775329838732,-500.0,0.00013698,2]
[419709073,1775329838741,-500.0,0.00013698,2]
[419709074,1775329838750,-500.0,0.00013698,2]
[419709075,1775329838760,-500.0,0.00013698,2]
[419709076,1775329838769,-500.0,0.00013698,2]
[419709077,1775329838778,-500.0,0.00013698,2]
[419709078,1775329838787,-500.0,0.00013698,2]
[419709079,1775329838796,-500.0,0.00013698,2]
[419709080,1775329838804,-500.0,0.00013698,2]
[419709081,1775329838814,-500.0,0.00013698,2]
[419709082,1775329838823,-500.0,0.00013698,2]
[419709083,1775329838831,-500.0,0.00013698,2]
[419709084,1775329838840,-500.0,0.00013698,2]
[419709085,1775329838850,-500.0,0.00013698,2]
[419709086,1775329838859,-500.0,0.00013698,2]
[419709087,1775329838868,-500.0,0.00013698,2]
[419709088,1775329838878,-500.0,0.00013698,2]
[419709089,1775329838890,-500.0,0.00013698,2]
[419709090,1775329838900,-500.0,0.00013698,2]
[419709091,1775329838910,-500.0,0.00013698,2]
[419709092,1775329838919,-500.0,0.00013698,2]
[419709093,1775329838928,-500.0,0.00013698,2]
[419709094,1775329838937,-500.0,0.00013698,2]
[419709095,1775329838947,-500.0,0.00013698,2]
[419709096,1775329838956,-500.0,0.00013698,2]
[419709097,1775329838966,-500.0,0.00013698,2]
[419709098,1775329838975,-500.0,0.00013698,2]
[419709099,1775329838984,-500.0,0.00013698,2]
[419709100,1775329838994,-500.0,0.00013698,2]
[419709101,1775329839003,-500.0,0.00013698,2]
[419709102,1775329839012,-433.75,0.00013698,2]
[419709103,1775329839021,-500.0,0.00013698,2]
[419709104,1775329839030,-491.0,0.00013698,2]
[419709105,1775329839039,-500.0,0.00013698,2]
[419709106,1775329839048,-500.0,0.00013698,2]
[419709107,1775329839058,-540.38303843,0.00013698,2]
[419709108,1775329839070,-500.0,0.00013698,2]
[419709109,1775329839080,-500.0,0.00013698,2]
[419709110,1775329839090,-500.0,0.00013698,2]
[419709111,1775329839099,-500.0,0.00013698,2]
[419709112,1775329839108,-500.0,0.00013698,2]
[419709113,1775329839117,-500.0,0.00013698,2]
[419709114,1775329839127,-500.0,0.00013698,2]
[419709115,1775329839136,-500.0,0.00013698,2]
[419709116,1775329839145,-500.0,0.00013698,2]
[419709117,1775329839154,-500.0,0.00013698,2]